bitfinex/quotes_ETHUSD_20240910
["timestamp","ask_amount","ask_price","bid_price","bid_amount"]
[1725993256955,3.0,2371.0,2370.5,0.02424]
[1725993257153,4.21721,2371.3,2370.5,0.02424]
[1725993257154,13.85829009,2371.4,2370.5,0.02424]
[1725993257456,18.07529009,2371.4,2370.5,0.02424]
[1725993257881,20.3045031,2371.4,2370.5,0.02424]
[1725993258387,13.7183031,2371.4,2370.6,2.2808]
[1725993258553,3.0,2371.3,2370.7,0.08435357]
[1725993261728,7.21717,2371.3,2370.6,2.2808]
[1725993262314,7.21717,2371.3,2370.6,2.511304]
[1725993263439,3.0,2371.3,2370.6,2.511304]
[1725993265407,18.07500009,2371.6,2370.7,0.08435696]
[1725993265604,4.21674,2371.5,2370.7,0.08435696]
[1725993265804,3.99909009,2371.4,2370.7,0.08435696]
[1725993266196,10.7451841,2371.4,2370.7,0.08435696]
[1725993266739,10.7451841,2371.4,2370.6,2.2808]
[1725993266950,3.99909009,2371.2,2370.6,2.2808]
[1725993267847,10.7451941,2371.4,2370.6,2.2808]
[1725993268147,10.7451941,2371.4,2370.6,2.511304]
[1725993269458,10.7451941,2371.4,2370.6,2.2808]
[1725993271751,6.5282641,2371.4,2370.7,0.08435706]
[1725993272066,3.0,2371.5,2370.7,0.08435706]
[1725993272221,3.0,2371.5,2370.8,2.4849]
[1725993272422,7.49,2371.6,2370.9,0.08434756]
[1725993272658,7.49,2371.6,2371.0,2.4849]
[1725993272859,7.49,2371.9,2371.1,0.34125762]
[1725993273470,11.70603,2371.9,2371.1,0.34125762]
[1725993273668,7.49,2371.9,2371.1,0.34125762]
[1725993273964,3.0,2371.8,2371.1,0.34125762]
[1725993274764,6.99909009,2371.8,2371.1,0.34125762]
[1725993274974,1.87052301,2371.7,2371.0,2.4849]
[1725993275187,4.28082301,2371.7,2371.0,2.4849]
[1725993275499,1.87052301,2371.7,2371.0,2.4849]
[1725993280207,3.19088262,2371.7,2371.0,2.4849]
[1725993280531,1.61666822,2371.6,2371.0,2.4849]
[1725993283114,3.99909009,2371.2,2370.6,2.4727]
[1725993283316,5.53717961,2371.5,2370.6,2.4727]
[1725993283521,4.02976591,2371.4,2370.8,2.4727]
[1725993283713,3.0,2371.4,2370.9,0.08434759]
[1725993283915,12.5360397,2371.6,2370.9,0.08434759]
[1725993284241,2.99670153,2371.5,2370.8,2.55704759]
[1725993284545,3.0,2371.4,2370.8,2.55704759]
[1725993285208,3.0,2371.4,2370.8,2.4727]
[1725993285435,6.99909009,2371.4,2370.8,2.4727]
[1725993286128,8.3194497,2371.4,2370.8,2.4727]
[1725993286328,1.42125616,2371.3,2370.8,2.4727]
[1725993288649,3.0,2371.4,2370.8,2.4727]
[1725993288947,3.99909009,2371.3,2370.6,2.4411]
[1725993289106,3.99909009,2371.1,2370.6,2.4411]
[1725993289312,3.99909009,2371.1,2370.5,0.02424]
[1725993289577,2.3585,2370.8,2370.5,0.02424]
[1725993289987,3.99909009,2370.7,2370.5,0.02424]
[1725993290482,5.3194497,2370.7,2370.5,0.02424]
[1725993290686,1.18959397,2370.6,2370.5,0.02424]
[1725993291059,1.18959397,2370.6,2370.1,2.3385]
[1725993291060,1.18959397,2370.6,2370.3,0.0329175]
[1725993291260,3.0,2370.7,2370.3,0.0329175]
[1725993291500,8.53836961,2370.8,2370.3,0.0329175]
[1725993291641,2.45014553,2370.7,2370.3,0.0329175]
[1725993291962,4.12978592,2370.7,2370.3,0.0329175]
[1725993293208,3.0,2370.7,2370.3,0.0329175]
[1725993293493,3.0,2370.8,2370.3,0.0329175]
[1725993293898,5.53805961,2371.0,2370.3,0.0329175]
[1725993294198,1.78735992,2370.9,2370.3,0.0329175]
[1725993294564,4.78735992,2370.9,2370.3,0.0329175]
[1725993295892,6.10771953,2370.9,2370.3,0.0329175]
[1725993296065,4.78735992,2370.9,2370.3,0.0329175]
[1725993296271,3.0,2370.9,2370.4,2.4742]
[1725993296451,4.32035961,2371.0,2370.4,2.4742]
[1725993296872,4.32035961,2371.0,2370.3,0.0329175]
[1725993297078,1.76047948,2371.1,2370.5,2.55856779]
[1725993297079,1.32035961,2371.1,2370.5,2.55856779]
[1725993297251,1.32035961,2371.2,2370.6,0.25585678]
[1725993298091,1.32035961,2371.2,2370.6,0.26502178]
[1725993298398,4.32035961,2371.2,2370.6,0.34937966]
[1725993298993,4.32035961,2371.2,2370.6,0.3493796]
[1725993299293,6.32013524,2371.2,2370.6,0.009165]
[1725993299649,5.53783961,2371.1,2370.6,0.009165]
[1725993299987,1.32035961,2371.0,2370.6,0.009165]
[1725993300361,1.32035961,2371.1,2370.6,0.009165]
[1725993300551,2.87296135,2371.1,2370.6,0.009165]
[1725993300894,4.32035961,2371.2,2370.7,2.4742]
[1725993301095,4.32035961,2371.2,2370.7,2.483365]
[1725993301470,1.32035961,2371.1,2370.7,2.483365]
[1725993301999,1.32035961,2371.2,2370.7,2.483365]
[1725993302148,1.32035961,2371.2,2370.8,0.2483365]
[1725993302350,1.32035961,2371.3,2370.8,0.2483365]
[1725993302583,1.32035961,2371.3,2370.7,2.483365]
[1725993303103,1.32035961,2371.3,2370.9,2.4087]
[1725993304143,1.32035961,2371.3,2370.8,0.009165]
[1725993304347,1.32035961,2371.1,2370.8,0.009165]
[1725993304564,3.99909009,2370.9,2370.8,0.009165]
[1725993304758,10.6413505,2370.9,2370.8,0.009165]
[1725993305000,13.6413505,2370.9,2370.8,0.009165]
[1725993305668,17.8591505,2370.9,2370.8,0.009165]
[1725993305867,18.30989874,2370.9,2370.8,0.009165]
[1725993308426,10.09300865,2370.9,2370.8,0.009165]
[1725993308580,4.76838213,2370.9,2370.8,0.009165]
[1725993308783,1.32618958,2370.9,2370.8,0.009165]
[1725993308977,1.32618958,2371.0,2370.8,0.009165]
[1725993309202,1.32618958,2371.0,2370.9,2.4697]
[1725993309573,1.32618958,2371.1,2370.9,2.4697]
[1725993310176,1.32618958,2371.0,2370.9,2.4697]
[1725993310423,1.32618958,2371.1,2370.9,2.4697]
[1725993310624,1.32618958,2371.0,2370.9,2.4697]
[1725993311185,1.32618958,2371.1,2370.9,2.4697]
[1725993311419,1.32618958,2371.0,2370.9,2.4697]
[1725993311624,1.32618958,2371.1,2370.9,2.4697]
[1725993311829,1.32618958,2371.0,2370.9,2.4697]
[1725993312181,1.32618958,2371.1,2370.9,2.4697]
[1725993312387,1.32618958,2371.0,2370.9,2.4697]
[1725993313180,1.32618958,2371.0,2370.8,0.009165]
[1725993314195,1.32618958,2371.1,2370.8,0.009165]
[1725993314616,1.32618958,2371.0,2370.8,0.009165]
[1725993315014,1.32618958,2371.1,2370.8,0.009165]
[1725993315327,1.32618958,2371.0,2370.8,0.009165]
[1725993315691,1.32618958,2371.1,2370.8,0.009165]
[1725993318596,1.32618958,2371.0,2370.8,0.009165]
[1725993318806,1.32618958,2371.1,2370.8,0.009165]
[1725993319329,1.32618958,2371.0,2370.8,0.009165]
[1725993319628,1.32618958,2371.0,2370.8,0.3391516]
[1725993319836,8.81618958,2371.4,2370.9,2.451]
[1725993320194,1.32618958,2371.3,2370.9,2.451]
[1725993320536,8.81618958,2371.4,2370.9,2.451]
[1725993320688,8.81618958,2371.4,2371.0,0.27901516]
[1725993320883,1.32618958,2371.4,2371.0,0.27901516]
[1725993322415,1.32618958,2371.3,2371.0,0.27901516]
[1725993323402,1.32618958,2371.4,2371.0,0.27901516]
[1725993324535,1.32618958,2371.5,2371.1,2.451]
[1725993325440,1.32618958,2371.6,2371.2,0.08433952]
[1725993325742,1.32618958,2371.6,2371.3,2.451]
[1725993325898,1.32618958,2371.7,2371.3,2.451]
[1725993326739,11.81618958,2371.8,2371.3,2.451]
[1725993326895,11.81618958,2371.8,2371.3,2.70453395]
[1725993327091,8.81618958,2371.8,2371.3,2.70453395]
[1725993327296,2.21029612,2372.0,2371.5,2.4511]
[1725993327297,1.32618958,2372.0,2371.5,2.4511]
[1725993327522,1.32618958,2372.0,2371.3,4.25262404]
[1725993327523,1.32618958,2372.0,2371.7,2.4511]
[1725993327803,1.32618958,2372.1,2371.7,2.4511]
[1725993328515,8.83077708,2372.2,2371.7,2.4511]
[1725993328837,1.32618958,2372.1,2371.7,2.69621]
[1725993329240,1.32618958,2372.1,2371.7,2.4511]
[1725993329997,8.83077708,2372.2,2371.7,2.4511]
[1725993330348,7.5045875,2372.2,2371.9,2.4511]
[1725993332954,0.0145875,2372.2,2372.0,0.08430864]
[1725993333126,0.0145875,2372.2,2372.1,2.4287]
[1725993336036,0.0145875,2372.2,2371.8,2.56200091]
[1725993336248,0.0145875,2372.2,2371.8,3.118201]
[1725993337946,0.0145875,2372.2,2371.8,2.56200091]
[1725993338969,0.0145875,2372.2,2372.1,6.31239009]
[1725993339269,7.5e-06,2372.2,2372.1,9.94667176]
[1725993339427,0.0237525,2372.7,2372.2,2.4147]
[1725993339626,0.0237525,2372.7,2372.5,2.4147]
[1725993339827,0.0237525,2372.7,2372.6,2.49897128]
[1725993340026,0.0237525,2372.7,2372.6,3.04897128]
[1725993340263,0.0237525,2372.7,2372.6,7.04806137]
[1725993340433,0.0237525,2372.7,2372.6,7.75286751]
[1725993340969,0.0237525,2372.7,2372.6,7.66859623]
[1725993344736,0.0237525,2372.7,2372.6,10.66859623]
[1725993345949,2.5e-06,2372.7,2372.6,10.66859623]
[1725993346251,0.0237525,2373.2,2372.7,2.289]
[1725993346438,0.0237525,2373.2,2373.1,6.28809009]
[1725993348053,0.0237525,2373.2,2373.1,3.99909009]
[1725993349343,0.0237525,2373.2,2372.9,0.08426191]
[1725993350181,0.0237525,2373.2,2372.8,0.08427659]
[1725993350885,2.4744,2373.1,2372.8,0.08427659]
[1725993351242,2.4744,2373.1,2372.3,12.7099]
[1725993351547,2.4744,2373.1,2372.4,4.85464974]
[1725993351750,2.4744,2373.1,2372.5,0.08428401]
[1725993352286,6.6533,2373.0,2372.1,0.08429104]
[1725993352458,6.6533,2373.0,2371.7,7.38]
[1725993352459,3.0237525,2373.2,2372.4,2.3852]
[1725993352804,3.0237525,2373.2,2372.5,0.08428578]
[1725993352805,3.0,2373.1,2372.5,0.08428578]
[1725993353353,3.79300783,2373.2,2372.5,0.08428578]
[1725993354381,8.00672783,2373.2,2372.5,0.08428578]
[1725993355076,1.20505796,2373.1,2372.5,0.08428578]
[1725993357124,4.21425,2372.9,2372.3,0.08429036]
[1725993357886,2.3694,2373.0,2372.3,0.08429036]
[1725993357887,6.58349,2373.0,2372.3,0.08429036]
[1725993358100,4.21425,2372.9,2372.2,0.0842966]
[1725993358296,2.3694,2373.0,2372.2,0.0842966]
[1725993358297,7.60063408,2373.0,2372.2,1.02278527]
[1725993358591,7.60063408,2373.0,2372.3,0.08429661]
[1725993358977,3.38656408,2373.0,2372.3,0.08429661]
[1725993359163,6.6069025,2373.2,2372.4,2.3015]
[1725993359365,6.6069025,2373.2,2372.5,0.08428914]
[1725993360394,0.0237525,2373.2,2372.5,0.08428914]
[1725993360699,0.0237525,2373.2,2372.6,2.3578]
[1725993360918,0.0237525,2373.2,2372.7,0.08427993]
[1725993362582,2.3698,2373.1,2372.6,0.08428298]
[1725993363422,8.47023144,2373.1,2372.4,0.08428545]
[1725993363615,6.58384,2373.1,2372.4,0.08428545]
[1725993364231,4.21425,2372.9,2372.2,0.08429251]
[1725993364394,2.3698,2372.7,2372.2,0.08429251]
[1725993364735,6.58443,2372.7,2371.9,2.3339]
[1725993364887,6.58443,2372.7,2372.0,0.31769394]
[1725993365091,6.58443,2372.7,2372.0,3.31769394]
[1725993365317,4.21478,2372.6,2371.9,2.3339]
[1725993365543,4.21478,2372.6,2371.9,2.41820619]
[1725993365689,4.21478,2372.6,2371.9,2.3339]
[1725993365690,4.21505,2372.5,2371.9,2.3339]
[1725993366088,2.3698,2372.7,2371.9,2.56729]
[1725993366340,2.3698,2372.7,2372.0,0.08430918]
[1725993366541,13.79812,2373.0,2372.0,0.08430918]
[1725993366829,7.21425,2372.9,2372.0,0.08430918]
[1725993367034,3.0,2372.9,2372.1,2.3339]
[1725993367239,2.3698,2373.0,2372.2,0.08429469]
[1725993367526,6.58388,2373.0,2372.2,0.08429469]
[1725993367706,4.21444,2372.8,2372.2,0.08429469]
[1725993367900,4.21444,2372.8,2372.1,2.3339]
[1725993368104,2.3698,2372.6,2372.0,0.08429935]
[1725993368527,4.21464,2372.7,2372.0,0.08429935]
[1725993368728,4.21464,2372.7,2372.0,0.34945828]
[1725993369038,4.21443,2372.8,2372.0,0.34945828]
[1725993369240,8.42896,2372.8,2372.0,0.34945828]
[1725993369539,2.3698,2372.9,2372.0,0.34945828]
[1725993369739,5.3698,2372.9,2372.0,0.34945828]
[1725993369898,5.3698,2372.9,2372.1,2.4683]
[1725993370096,9.58409,2372.9,2372.2,0.3660706]
[1725993370429,9.58409,2372.9,2372.3,0.08429477]
[1725993370625,5.3698,2372.9,2372.3,0.08429477]
[1725993370825,7.21409,2373.0,2372.3,0.08429477]
[1725993371029,9.74668026,2373.0,2372.3,0.08429477]
[1725993371793,13.96085026,2373.0,2372.3,0.08429477]
[1725993372199,4.21429,2372.9,2372.3,0.08429477]
[1725993372604,4.21429,2372.9,2372.2,0.08429676]
[1725993373002,4.21453,2372.8,2372.1,2.55259686]
[1725993373201,5.23431711,2372.8,2372.1,2.55259686]
[1725993374648,4.21429,2372.9,2372.1,2.55259686]
[1725993374848,8.42862,2372.9,2372.1,2.55259686]
[1725993375051,8.42866,2372.9,2372.1,2.55259686]
[1725993375252,7.21409,2373.0,2372.1,2.55259686]
[1725993375407,7.21409,2373.0,2372.2,0.28177558]
[1725993375610,7.21409,2373.0,2372.3,0.08429536]
[1725993376042,3.0,2373.0,2372.3,0.08429536]
[1725993376248,2.265,2372.9,2372.1,2.307]
[1725993376453,2.265,2372.9,2371.6,3.0]
[1725993376454,2.265,2372.5,2371.8,2.307]
[1725993376613,8.21430009,2372.4,2371.4,5.39131703]
[1725993376813,4.21533,2372.3,2371.5,3.0]
[1725993377014,6.64259,2372.1,2371.4,2.307]
[1725993377221,4.21588,2372.0,2371.4,2.307]
[1725993377420,4.21588,2372.0,2371.3,0.0237525]
[1725993377816,4.2163,2371.8,2371.3,0.0237525]
[1725993378027,4.21603,2371.9,2371.3,0.0237525]
[1725993378252,5.01292796,2371.9,2371.3,0.0237525]
[1725993379050,4.21638,2371.7,2371.3,0.0237525]
[1725993379259,4.21585,2372.0,2371.4,2.3822]
[1725993379464,4.21623,2371.8,2371.4,2.3822]
[1725993379792,4.21623,2371.8,2371.3,0.0237525]
[1725993379793,6.61425,2371.9,2371.3,0.0237525]
[1725993380854,6.61421,2371.9,2371.3,0.0237525]
[1725993381297,3.99909009,2371.8,2371.3,0.0237525]
[1725993381450,14.85301009,2371.4,2371.3,0.0237525]
[1725993381961,9.63701,2371.4,2371.3,0.0237525]
[1725993382269,3.0,2371.4,2371.3,0.0237525]
[1725993382493,4.21691,2371.4,2371.3,0.0237525]
[1725993382695,7.21684,2371.5,2371.3,0.0237525]
[1725993382899,6.65952,2371.7,2371.3,0.0237525]
[1725993382900,6.65947,2371.7,2371.3,0.0237525]
[1725993383097,12.27295417,2371.7,2371.3,0.0237525]
[1725993383403,3.0,2371.6,2371.3,0.0237525]
[1725993383604,3.99909009,2371.4,2371.3,0.0237525]
[1725993383759,10.49380009,2371.4,2371.3,0.0237525]
[1725993383964,15.81707329,2371.4,2371.3,0.0237525]
[1725993384263,23.03398329,2371.4,2371.3,0.0237525]
[1725993384677,23.58398329,2371.4,2371.3,0.0237525]
[1725993385262,27.80089329,2371.4,2371.3,0.0237525]
[1725993385813,31.79998338,2371.4,2371.3,0.0237525]
[1725993385977,27.80089329,2371.4,2371.3,0.0237525]
[1725993386180,23.58398329,2371.4,2371.3,0.0237525]
[1725993387102,14.8179832,2371.4,2371.3,0.0237525]
[1725993387403,17.71071009,2371.4,2371.3,0.0237525]
[1725993387912,19.03689967,2371.4,2371.3,0.0237525]
[1725993388109,1.32618958,2371.4,2371.3,0.0237525]
[1725993390105,1.32618958,2371.4,2371.3,2.5125525]
[1725993390318,1.32618958,2371.4,2371.3,3.31455633]
[1725993390471,1.32618958,2371.4,2371.3,3.39888462]
[1725993392084,0.47849656,2371.5,2371.3,3.40378462]
[1725993392369,4.37133557,2372.7,2371.5,2.4937]
[1725993392572,4.37133557,2372.7,2372.1,2.4937]
[1725993392796,4.37133557,2372.7,2372.3,2.49]
[1725993393017,4.37133557,2372.7,2372.4,0.0842919]
[1725993393318,4.37133557,2372.7,2372.4,0.7416301]
[1725993394417,4.37133557,2372.7,2372.4,0.0842919]
[1725993396172,4.37133557,2372.7,2372.5,0.55]
[1725993396376,4.37133557,2372.7,2372.6,2.45368617]
[1725993396601,4.37133557,2372.7,2372.6,3.00368617]
[1725993397390,4.37133557,2372.7,2372.6,2.3694]
[1725993397585,4.37133557,2372.7,2372.6,3.10673873]
[1725993398424,0.0237525,2373.2,2372.6,3.65673873]
[1725993398626,0.0237525,2373.2,2372.7,0.08427685]
[1725993400489,0.0237525,2373.2,2372.8,2.2901]
[1725993400694,0.0237525,2373.2,2372.9,0.08427062]
[1725993400902,0.0237525,2373.2,2372.9,0.32170768]
[1725993401426,0.0237525,2373.2,2373.0,0.55]
[1725993401580,0.0237525,2373.2,2373.1,0.08426438]
[1725993401778,0.0237525,2373.2,2373.1,2.37436438]
[1725993402393,0.0008,2373.4,2373.1,2.37436438]
[1725993402394,0.0008,2373.4,2373.1,5.55395966]
[1725993402632,0.0008,2373.4,2373.2,3.10539597]
[1725993402918,0.0008,2373.4,2373.2,4.10539597]
[1725993403119,0.0008,2373.4,2373.3,0.08423328]
[1725993403321,0.0008,2373.4,2373.3,3.63423328]
[1725993403518,0.0008,2373.4,2373.3,5.98033328]
[1725993403817,0.0008,2373.4,2373.3,7.12587681]
[1725993404825,0.0008,2373.4,2373.3,3.57587681]
[1725993405025,0.0008,2373.4,2373.3,2.43033328]
[1725993405532,0.0008,2373.4,2373.2,0.63965062]
[1725993406116,0.0008,2373.4,2373.1,0.08426319]
[1725993407089,0.0008,2373.4,2372.7,2.4943]
[1725993407311,0.0008,2373.4,2372.8,0.08426609]
[1725993407494,0.0008,2373.4,2372.9,0.55]
[1725993407712,0.0008,2373.4,2373.0,0.08426612]
[1725993409035,0.0008,2373.4,2373.1,0.55]
[1725993409192,0.0008,2373.4,2373.2,0.08425601]
[1725993410087,0.0008,2373.4,2373.0,0.0842641]
[1725993411123,0.0008,2373.4,2373.2,2.3534]
[1725993411421,0.0008,2373.4,2373.3,0.37459603]
[1725993413224,0.0008,2373.4,2373.2,0.08425765]
[1725993414336,0.0008,2373.4,2373.0,0.08425761]
[1725993414630,0.0008,2373.4,2373.1,0.55]
[1725993414802,0.0008,2373.4,2373.2,0.08425764]
[1725993416132,0.0008,2373.4,2373.0,0.08425997]
[1725993416287,0.0008,2373.4,2373.0,0.32228597]
[1725993417646,0.0008,2373.4,2372.9,0.08426532]
[1725993417785,0.0008,2373.4,2372.6,9.6677]
[1725993417786,2.3143,2373.3,2372.8,0.08426532]
[1725993418706,2.3143,2373.3,2372.7,0.0842789]
[1725993418905,2.3143,2373.3,2372.7,0.83070679]
[1725993419119,0.0008,2373.4,2372.7,0.83070679]
[1725993419120,0.0008,2373.4,2372.8,0.08427011]
[1725993419324,4.21363,2373.3,2372.8,0.08427011]
[1725993419643,4.21363,2373.3,2372.0,2.0]
[1725993419644,4.21392,2373.1,2372.3,0.08427896]
[1725993419932,2.3606,2372.8,2372.2,0.08429329]
[1725993420149,4.21488,2372.6,2371.8,0.10805186]
[1725993421156,4.21488,2372.6,2371.8,0.0237525]
[1725993421646,8.42977,2372.6,2371.8,0.0237525]
[1725993421805,4.91970604,2372.7,2371.8,0.0237525]
[1725993422160,2.3606,2372.8,2371.9,2.4278]
[1725993422355,2.3606,2372.8,2372.0,0.8878796]
[1725993422648,4.2148,2372.6,2372.0,0.08430035]
[1725993422947,4.21497,2372.5,2371.8,0.10805979]
[1725993423148,7.379217,2372.4,2371.8,0.0237525]
[1725993423443,6.53624,2372.4,2371.8,0.0237525]
[1725993424799,2.3211,2372.4,2371.8,0.0237525]
[1725993425304,3.0,2372.5,2371.8,2.4113525]
[1725993425633,3.0,2372.5,2371.9,0.0843075]
[1725993426144,8.163411,2372.5,2371.9,0.0843075]
[1725993426328,3.948371,2372.5,2371.8,0.0237525]
[1725993426528,8.163381,2372.5,2371.8,0.0237525]
[1725993427109,2.4476,2373.0,2371.9,2.3999]
[1725993427456,2.4476,2373.3,2372.1,2.3999]
[1725993427631,2.4476,2373.3,2372.2,0.08428306]
[1725993427805,2.4476,2373.3,2372.3,0.55]
[1725993428002,2.4476,2373.3,2372.4,0.0842831]
[1725993428252,0.0008,2373.4,2372.5,2.3999]
[1725993428455,0.0008,2373.4,2372.6,0.63427459]
[1725993429220,4.21417,2373.4,2372.6,0.08427459]
[1725993429604,2.4021,2373.3,2372.6,0.08427459]
[1725993430052,3.0008,2373.4,2372.6,0.08427459]
[1725993430420,0.0008,2373.4,2372.7,2.9468]
[1725993430752,0.0008,2373.4,2372.8,0.38737948]
[1725993431636,0.0008,2373.4,2372.8,0.30310746]
[1725993431807,0.0008,2373.4,2372.5,0.08428115]
[1725993433872,0.0008,2373.4,2372.6,2.43]
[1725993434025,0.0008,2373.4,2372.7,0.08427274]
[1725993435469,0.0008,2373.4,2372.9,2.43]
[1725993435671,0.0008,2373.4,2373.0,0.08426638]
[1725993435822,0.0008,2373.4,2373.0,0.39069302]
[1725993438860,0.0008,2373.4,2373.2,2.2717]
[1725993439164,0.0008,2373.4,2373.3,0.08425944]
[1725993439371,0.0008,2373.4,2373.3,0.63425944]
[1725993439741,0.0008,2373.4,2373.3,2.98685944]
[1725993439947,0.0008,2373.4,2373.3,5.98685944]
[1725993440146,0.0008,2373.4,2373.3,7.07751599]
[1725993440967,0.0008,2373.4,2373.3,6.99325655]
[1725993442641,0.0237525,2373.6,2373.4,2.3977]
[1725993442839,0.0237525,2373.6,2373.5,0.63423595]
[1725993443039,0.0237525,2373.6,2373.5,4.6014952]
[1725993443937,0.0237525,2373.6,2373.5,4.0514952]
[1725993445188,0.0237525,2373.6,2373.5,1.0514952]
[1725993445342,0.0237525,2373.6,2373.2,0.08425052]
[1725993445672,0.0237525,2373.6,2373.3,0.55]
[1725993445902,0.0237525,2373.6,2373.4,0.08425052]
[1725993446176,0.0237525,2373.6,2373.5,2.3977]
[1725993446335,0.0237525,2373.6,2373.5,2.9477]
[1725993446536,0.0237525,2373.6,2373.5,3.30589505]
[1725993446963,0.0237525,2373.6,2373.5,2.75589505]
[1725993447463,0.0237525,2373.6,2373.5,3.30589505]
[1725993448041,0.0237525,2373.6,2373.5,6.30589505]
[1725993450243,0.0237525,2373.6,2373.5,5.75589505]
[1725993450758,0.0237525,2373.6,2373.5,0.35819505]
[1725993451113,0.0237525,2373.6,2373.4,0.08425052]
[1725993453807,0.0237525,2373.6,2373.5,2.4322]
[1725993453961,0.0237525,2373.6,2373.5,2.9822]
[1725993454886,0.0237525,2373.6,2373.4,0.08425052]
[1725993455073,0.0237525,2373.6,2373.2,3.08425053]
[1725993455292,0.0237525,2373.6,2373.3,4.18589559]
[1725993455612,0.0237525,2373.6,2373.3,0.63425054]
[1725993459007,0.0237525,2373.6,2373.4,2.2715]
[1725993459180,0.0237525,2373.6,2373.5,0.63424218]
[1725993460502,0.0237525,2373.6,2373.5,4.92114218]
[1725993460707,0.0237525,2373.6,2373.5,8.4132564]
[1725993460919,0.01264305,2373.6,2373.5,8.4132564]
[1725993461206,0.01264305,2373.6,2373.5,8.32901422]
[1725993461407,0.01264305,2373.6,2373.5,8.41323787]
[1725993461781,0.0237525,2374.1,2373.5,8.41323787]
[1725993461982,0.0237525,2374.1,2373.6,3.84132379]
[1725993462207,0.0237525,2374.1,2373.7,0.63422371]
[1725993462383,0.0237525,2374.1,2373.8,0.08423067]
[1725993464819,0.0237525,2374.1,2373.9,0.55]
[1725993464972,0.0237525,2374.1,2374.0,0.08422928]
[1725993465879,0.0237525,2374.1,2374.0,0.63422928]
[1725993466091,0.0237525,2374.1,2373.7,0.08422385]
[1725993466299,0.0237525,2374.1,2373.7,0.90546861]
[1725993466497,0.0237525,2374.1,2373.8,0.63422945]
[1725993470615,0.0237525,2374.1,2373.8,0.08422945]
[1725993473624,0.0237525,2374.1,2373.5,0.0842384]
[1725993473826,0.0237525,2374.1,2373.6,0.55]
[1725993474024,0.0237525,2374.1,2373.7,0.08423843]
[1725993477051,0.0237525,2374.1,2373.8,0.55]
[1725993477413,0.0237525,2374.1,2373.9,0.37285923]
[1725993477670,0.0237525,2374.1,2374.0,0.55]
[1725993478258,0.0237525,2374.1,2374.0,2.8021]
[1725993478441,2.5e-06,2374.1,2374.0,6.7943108]
[1725993478775,2.5e-06,2374.1,2374.0,11.5107741]
[1725993479267,2.5e-06,2374.1,2374.0,12.4630884]
[1725993479424,2.5e-06,2374.1,2374.0,13.12243579]
[1725993479623,2.5e-06,2374.1,2374.0,12.17012149]
[1725993479820,2.5e-06,2374.1,2374.0,8.47129816]
[1725993480048,2.5e-06,2374.1,2374.0,7.5185633]
[1725993480470,2.5e-06,2374.1,2374.0,8.4709712]
[1725993480766,2.5e-06,2374.1,2374.0,12.463182]
[1725993480921,2.5e-06,2374.1,2374.0,13.89228429]
[1725993481124,2.5e-06,2374.1,2374.0,8.4709712]
[1725993481367,2.5e-06,2374.1,2374.0,13.74518333]
[1725993481581,7.5e-06,2375.1,2374.8,2.0]
[1725993481744,7.5e-06,2375.1,2374.6,2.4379]
[1725993481745,7.5e-06,2375.1,2374.9,0.0841856]
[1725993483130,7.5e-06,2375.1,2374.4,0.08500399]
[1725993483440,2.3521,2375.0,2374.4,0.82302439]
[1725993483644,2.3521,2375.0,2374.4,0.08500399]
[1725993484854,2.3521,2375.0,2374.4,0.00080421]
[1725993485745,3.9922108,2374.9,2374.4,0.00080421]
[1725993485971,2.3801,2374.8,2374.4,0.00080421]
[1725993486187,2.3801,2374.7,2374.4,0.00080421]
[1725993486382,2.3801,2374.6,2374.4,0.00080421]
[1725993487398,2.3801,2374.5,2374.4,0.00080421]
[1725993487751,5.75339671,2375.0,2374.4,0.00080421]
[1725993487752,2.3801,2375.0,2374.4,0.00080421]
[1725993488078,2.3801,2375.2,2374.4,0.00080421]
[1725993488389,2.3801,2375.2,2374.4,2.3385057]
[1725993488701,2.3801,2375.2,2374.5,0.43385057]
[1725993488849,0.02376,2375.5,2374.6,0.63420056]
[1725993488850,2.32546,2375.5,2374.6,0.63420056]
[1725993489048,2.32546,2375.5,2374.6,4.62641136]
[1725993489286,0.02376,2375.5,2374.8,2.4436]
[1725993489488,0.02376,2375.5,2374.9,1.37854506]
[1725993489697,0.02376,2375.5,2374.9,4.37854506]
[1725993490417,0.02376,2375.5,2375.0,2.363]
[1725993490705,3.2e-06,2375.9,2375.6,2.0]
[1725993490914,3.2e-06,2375.9,2375.7,2.48865481]
[1725993491208,5.7e-06,2376.0,2375.9,2.0]
[1725993491511,5.7e-06,2376.0,2375.9,2.55]
[1725993491798,5.7e-06,2376.0,2375.9,5.55]
[1725993492015,5.7e-06,2376.0,2375.9,3.55]
[1725993492160,0.0047622,2376.5,2376.2,2.0]
[1725993492360,0.0047622,2376.5,2376.3,2.9525386]
[1725993492602,1.58687891,2378.4,2377.3,2.0]
[1725993492950,2.91697569,2378.4,2377.4,0.08408993]
[1725993493096,4.49989677,2378.3,2377.4,0.08408993]
[1725993493431,0.034092,2378.5,2377.4,0.08408993]
[1725993493735,0.034092,2378.5,2377.4,4.99171887]
[1725993493937,0.034092,2378.5,2377.9,2.0]
[1725993494092,0.034092,2378.5,2378.0,0.08408125]
[1725993494439,0.034092,2379.9,2378.0,0.08408125]
[1725993494440,0.5545764,2380.3,2380.2,4.3759]
[1725993494653,0.005898,2380.4,2380.2,4.3759]
[1725993494654,0.005898,2380.4,2380.3,2.0]
[1725993494942,0.005898,2380.4,2380.3,2.08397934]
[1725993495306,0.005898,2380.4,2380.3,6.01073017]
[1725993495506,0.0478186,2381.4,2380.3,6.01073017]
[1725993495507,0.0478186,2381.4,2381.3,2.1]
[1725993495741,0.0478186,2381.4,2381.3,2.0]
[1725993496032,0.0478186,2381.4,2381.2,4.90762894]
[1725993496352,0.0478186,2381.4,2381.3,3.08395446]
[1725993496639,0.0478186,2381.4,2381.3,0.08395788]
[1725993496839,0.0478186,2381.4,2380.5,0.08397727]
[1725993497041,0.0478186,2381.4,2380.6,0.55]
[1725993497345,0.0478186,2381.4,2380.7,0.0839773]
[1725993498223,0.0478186,2381.4,2380.8,0.08398152]
[1725993498425,2.3107,2381.8,2380.8,0.08398152]
[1725993498751,0.23107,2381.7,2380.8,0.08398152]
[1725993499346,0.23107,2381.7,2380.5,0.0839816]
[1725993499646,1.04385181,2382.1,2381.0,2.0]
[1725993499853,1.04385181,2382.1,2380.6,0.55]
[1725993499854,1.04385181,2382.1,2381.3,2.0]